[Event "World Prestigious University 2019"]
[Site "Tianjin"]
[Date "2019.11.28"]
[Round "9.14"]
[White "Mihov, Filip"]
[Black "Li, Yankai"]
[Result "0-1"]
[WhiteElo "2191"]
[BlackElo "2432"]
[PlyCount "74"]
[EventDate "2019.11.26"]
[EventType "team-tourn"]
[EventCountry "CHN"]
[TimeControl "1500+10"]
[WhiteClock "0:10:19"]
[BlackClock "0:00:18"]

1. c4 {[%emt 0:00:00]} c5 {[%emt 0:00:00]} 2. g3 {[%emt 0:00:00]} Nc6 {[%emt 0:00:00]} 3. Bg2 {[%emt 0:00:01]} g6 {[%emt 0:00:00]} 4. Nc3 {[%emt 0:00:02]} Bg7 {[%emt 0:00:00]} 5. a3 {[%emt 0:00:02]} d6 {[%emt 0:00:23]} 6. Rb1 {[%emt 0:00:07]} a5 {[%emt 0:00:02]} 7. d3 {[%emt 0:00:24]} e5 {[%emt 0:00:02]} 8. e3 {[%emt 0:00:04]} Nge7 {[%emt 0:00:02]} 9. Nge2 {[%emt 0:00:03]} O-O {[%emt 0:00:02]} 10. O-O {[%emt 0:00:05]} Be6 {[%emt 0:00:02]} 11. Nd5 {[%emt 0:00:14]} Rb8 {[%emt 0:00:13]} 12. Bd2 {[%emt 0:00:37]} Qd7 {[%emt 0:01:01]} 13. b4 {[%emt 0:02:12]} axb4 {[%emt 0:00:04]} 14. axb4 {[%emt 0:00:01]} cxb4 {[%emt 0:01:40]} 15. Nxb4 {[%emt 0:01:09]} d5 {[%emt 0:00:02]} 16. cxd5 {[%emt 0:01:44]} Nxd5 {[%emt 0:00:08]} 17. Nxc6 {[%emt 0:00:28]} Qxc6 {[%emt 0:01:11]} 18. Rb2 {[%emt 0:03:56]} Qd7 {[%emt 0:01:27]} 19. Qb1 {[%emt 0:00:11]} b5 {[%emt 0:00:40]} 20. Nc3 {[%emt 0:01:30]} e4 {[%emt 0:02:59]} 21. d4 {[%emt 0:01:49]} Nxc3 {[%emt 0:00:10]} 22. Bxc3 {[%emt 0:00:01]} Bc4 {[%emt 0:00:02]} 23. Rc1 {[%emt 0:03:57]} Bd3 {[%emt 0:00:01]} 24. Qa2 {[%emt 0:06:24]} Rfc8 {[%emt 0:00:05]} 25. Qb3 {[%emt 0:00:59]} Bf8 {[%emt 0:05:15]} 26. Bf1 {[%emt 0:01:51]} b4 {[%emt 0:02:20]} 27. Bd2 {[%emt 0:00:00]} Rxc1 {[%emt 0:00:01]} 28. Bxc1 {[%emt 0:00:01]} Bxf1 {[%emt 0:00:02]} 29. Kxf1 {[%emt 0:00:02]} Ra8 {[%emt 0:00:01]} 30. Rb1 {[%emt 0:00:22]} Qb5+ {[%emt 0:01:02]} 31. Kg2 {[%emt 0:00:03]} Qe2 {[%emt 0:00:40]} 32. Bb2 {[%emt 0:00:52]} Rc8 {[%emt 0:01:05]} 33. Rc1 {[%emt 0:00:07]} Rxc1 {[%emt 0:00:02]} 34. Bxc1 {[%emt 0:00:01]} Qd3 {[%emt 0:00:01]} 35. Qxd3 {[%emt 0:00:52]} exd3 {[%emt 0:00:01]} 36. e4 {[%emt 0:00:34]} b3 {[%emt 0:00:03]} 37. Kf3 {[%emt 0:00:07]} d2 {[%emt 0:00:02]} 0-1

[Event "World Prestigious University 2019"]
[Site "Tianjin"]
[Date "2019.11.28"]
[Round "9.16"]
[White "Bibby, Simon"]
[Black "Li, Ethan"]
[Result "0-1"]
[WhiteElo "2167"]
[BlackElo "2209"]
[PlyCount "101"]
[EventDate "2019.11.26"]
[EventType "team-tourn"]
[EventCountry "CHN"]
[TimeControl "1500+10"]
[WhiteClock "0:01:47"]
[BlackClock "0:00:31"]

1. e4 {[%emt 0:00:00]} c5 {[%emt 0:00:00]} 2. Nf3 {[%emt 0:00:00]} d6 {[%emt 0:00:00]} 3. Bb5+ {[%emt 0:00:00]} Bd7 {[%emt 0:00:00]} 4. Bxd7+ {[%emt 0:00:00]} Qxd7 {[%emt 0:00:00]} 5. O-O {[%emt 0:00:00]} Nf6 {[%emt 0:00:00]} 6. Re1 {[%emt 0:00:00]} Nc6 {[%emt 0:00:14]} 7. c3 {[%emt 0:00:00]} e6 {[%emt 0:00:02]} 8. d4 {[%emt 0:00:00]} cxd4 {[%emt 0:00:01]} 9. cxd4 {[%emt 0:00:00]} d5 {[%emt 0:00:01]} 10. e5 {[%emt 0:00:00]} Ne4 {[%emt 0:00:02]} 11. a3 {[%emt 0:00:01]} Be7 {[%emt 0:00:33]} 12. Nbd2 {[%emt 0:00:05]} Nxd2 {[%emt 0:00:23]} 13. Bxd2 {[%emt 0:00:02]} b5 {[%emt 0:00:20]} 14. Rc1 {[%emt 0:00:25]} O-O {[%emt 0:01:13]} 15. Rc3 {[%emt 0:01:16]} b4 {[%emt 0:00:43]} 16. Rd3 {[%emt 0:00:54]} bxa3 {[%emt 0:00:58]} 17. bxa3 {[%emt 0:00:01]} Rfc8 {[%emt 0:02:46]} 18. Ng5 {[%emt 0:00:48]} h6 {[%emt 0:00:25]} 19. Nxf7 {[%emt 0:00:50]} Kxf7 {[%emt 0:00:27]} 20. Qh5+ {[%emt 0:07:34]} g6 {[%emt 0:00:12]} 21. Qxh6 {[%emt 0:01:29]} Qb7 {[%emt 0:00:01]} 22. Rf3+ {[%emt 0:06:15]} Ke8 {[%emt 0:00:02]} 23. Qxg6+ {[%emt 0:00:38]} Kd7 {[%emt 0:00:03]} 24. Rf7 {[%emt 0:00:48]} Rg8 {[%emt 0:02:20]} 25. Qd3 {[%emt 0:01:01]} Rab8 {[%emt 0:03:17]} 26. Rc1 {[%emt 0:02:35]} Qb3 {[%emt 0:00:33]} 27. Qh7 {[%emt 0:02:43]} Rh8 {[%emt 0:01:18]} 28. Qg6 {[%emt 0:00:07]} Rbg8 {[%emt 0:02:03]} 29. Rg7 {[%emt 0:00:02]} Rxg7 {[%emt 0:02:54]} 30. Qxg7 {[%emt 0:00:01]} Nxd4 {[%emt 0:00:27]} 31. Kh1 {[%emt 0:00:54]} Rc8 {[%emt 0:01:25]} 32. Re1 {[%emt 0:00:20]} Rc2 {[%emt 0:02:13]} 33. Bb4 {[%emt 0:00:15]} Nf5 {[%emt 0:00:05]} 34. Qh7 {[%emt 0:00:17]} Rxf2 {[%emt 0:00:24]} 35. Bxe7 {[%emt 0:00:54]} Nxe7 {[%emt 0:00:02]} 36. Rb1 {[%emt 0:00:05]} Rb2 {[%emt 0:01:37]} 37. Rc1 {[%emt 0:00:12]} Qxa3 {[%emt 0:00:27]} 38. h4 {[%emt 0:00:07]} Rxg2 {[%emt 0:00:12]} 39. Rc7+ {[%emt 0:00:27]} Kxc7 {[%emt 0:00:02]} 40. Kxg2 {[%emt 0:00:01]} Kd7 {[%emt 0:00:32]} 41. h5 {[%emt 0:00:13]} Qb2+ {[%emt 0:00:02]} 42. Kg1 {[%emt 0:00:08]} Qc1+ {[%emt 0:00:16]} 43. Kg2 {[%emt 0:00:02]} Qg5+ {[%emt 0:00:03]} 44. Kh2 {[%emt 0:00:10]} Qxe5+ {[%emt 0:00:03]} 45. Kg1 {[%emt 0:00:02]} Qg3+ {[%emt 0:00:45]} 46. Kf1 {[%emt 0:00:13]} d4 {[%emt 0:00:55]} 47. h6 {[%emt 0:00:23]} d3 {[%emt 0:00:04]} 48. Qh8 {[%emt 0:00:10]} Qf3+ {[%emt 0:00:42]} 49. Kg1 {[%emt 0:00:01]} Qg4+ {[%emt 0:00:14]} 50. Kh2 {[%emt 0:00:27]} d2 {[%emt 0:00:12]} 51. Qc3 {[%emt 0:00:03]} 0-1

[Event "World Prestigious University 2019"]
[Site "Tianjin"]
[Date "2019.11.29"]
[Round "10.1"]
[White "TannerAustin, McNamara"]
[Black "Li, Ethan"]
[Result "1-0"]
[WhiteElo "1983"]
[BlackElo "2209"]
[PlyCount "71"]
[EventDate "2019.11.26"]
[EventType "team-tourn"]
[EventCountry "CHN"]
[TimeControl "1500+10"]
[WhiteClock "0:08:37"]
[BlackClock "0:03:11"]

1. d4 {[%emt 0:00:00]} d5 {[%emt 0:00:00]} 2. c4 {[%emt 0:00:05]} c6 {[%emt 0:00:00]} 3. Nf3 {[%emt 0:00:07]} Nf6 {[%emt 0:00:00]} 4. Nc3 {[%emt 0:00:02]} e6 {[%emt 0:00:00]} 5. cxd5 {[%emt 0:01:15]} cxd5 {[%emt 0:00:14]} 6. Bf4 {[%emt 0:00:32]} Nc6 {[%emt 0:01:42]} 7. e3 {[%emt 0:00:06]} Nh5 {[%emt 0:00:35]} 8. Bg3 {[%emt 0:00:05]} Nxg3 {[%emt 0:00:11]} 9. hxg3 {[%emt 0:00:03]} a6 {[%emt 0:01:09]} 10. Rc1 {[%emt 0:01:36]} b5 {[%emt 0:02:48]} 11. Bd3 {[%emt 0:00:35]} h6 {[%emt 0:00:35]} 12. Kf1 {[%emt 0:03:38]} Bb7 {[%emt 0:01:14]} 13. Ne2 {[%emt 0:00:59]} Rc8 {[%emt 0:01:15]} 14. Nf4 {[%emt 0:01:32]} Nb4 {[%emt 0:02:26]} 15. Rxc8 {[%emt 0:00:56]} Qxc8 {[%emt 0:00:07]} 16. Bb1 {[%emt 0:00:02]} Qc4+ {[%emt 0:00:58]} 17. Kg1 {[%emt 0:00:09]} Nxa2 {[%emt 0:01:11]} 18. Nd2 {[%emt 0:01:54]} Qb4 {[%emt 0:00:47]} 19. Bxa2 {[%emt 0:02:14]} Qxb2 {[%emt 0:00:02]} 20. Bb1 {[%emt 0:00:54]} Bd6 {[%emt 0:00:03]} 21. Kh2 {[%emt 0:02:43]} Ke7 {[%emt 0:00:06]} 22. Nd3 {[%emt 0:00:22]} Qa3 {[%emt 0:00:02]} 23. Qb3 {[%emt 0:00:54]} Qa5 {[%emt 0:00:02]} 24. Nf3 {[%emt 0:00:51]} h5 {[%emt 0:00:41]} 25. Nc5 {[%emt 0:02:47]} Bc8 {[%emt 0:01:07]} 26. Ne5 {[%emt 0:00:09]} Qc7 {[%emt 0:00:23]} 27. Ncd3 {[%emt 0:00:10]} h4 {[%emt 0:00:06]} 28. Rc1 {[%emt 0:00:19]} hxg3+ {[%emt 0:00:08]} 29. Kxg3 {[%emt 0:00:02]} Qd8 {[%emt 0:01:36]} 30. Kf3 {[%emt 0:00:04]} Kf8 {[%emt 0:00:28]} 31. Qc2 {[%emt 0:01:43]} Bb7 {[%emt 0:00:11]} 32. Ke2 {[%emt 0:00:01]} g6 {[%emt 0:00:12]} 33. Nf4 {[%emt 0:00:13]} Kg7 {[%emt 0:01:51]} 34. Nexg6 {[%emt 0:00:18]} Rh2 {[%emt 0:00:02]} 35. Ne5 {[%emt 0:00:16]} a5 {[%emt 0:00:01]} 36. Nxe6+ {[%emt 0:00:13]} 1-0

[Event "World Prestigious University 2019"]
[Site "Tianjin"]
[Date "2019.11.29"]
[Round "10.4"]
[White "Daniel, Karim Abbas"]
[Black "Bibby, Simon"]
[Result "1-0"]
[WhiteElo "2251"]
[BlackElo "2167"]
[PlyCount "55"]
[EventDate "2019.11.26"]
[EventType "team-tourn"]
[EventCountry "CHN"]
[TimeControl "1500+10"]
[WhiteClock "0:06:54"]
[BlackClock "0:09:41"]

1. e4 {[%emt 0:00:00]} c5 {[%emt 0:00:00]} 2. Nf3 {[%emt 0:00:00]} Nc6 {[%emt 0:00:00]} 3. Bb5 {[%emt 0:00:01]} g6 {[%emt 0:00:00]} 4. Bxc6 {[%emt 0:00:02]} dxc6 {[%emt 0:00:00]} 5. d3 {[%emt 0:00:01]} Bg7 {[%emt 0:00:10]} 6. h3 {[%emt 0:00:01]} Nf6 {[%emt 0:00:11]} 7. Nc3 {[%emt 0:00:02]} Nd7 {[%emt 0:00:19]} 8. Be3 {[%emt 0:00:11]} e5 {[%emt 0:00:09]} 9. O-O {[%emt 0:00:17]} b6 {[%emt 0:01:13]} 10. Nh2 {[%emt 0:00:07]} Nf8 {[%emt 0:00:41]} 11. f4 {[%emt 0:00:02]} exf4 {[%emt 0:00:01]} 12. Rxf4 {[%emt 0:00:01]} Ne6 {[%emt 0:03:10]} 13. Rf2 {[%emt 0:01:28]} Nd4 {[%emt 0:00:26]} 14. Qd2 {[%emt 0:02:36]} Be6 {[%emt 0:00:39]} 15. a4 {[%emt 0:00:55]} Qd7 {[%emt 0:01:19]} 16. Raf1 {[%emt 0:00:58]} c4 {[%emt 0:01:09]} 17. Nf3 {[%emt 0:01:57]} Nxf3+ {[%emt 0:01:03]} 18. Rxf3 {[%emt 0:00:03]} cxd3 {[%emt 0:00:17]} 19. cxd3 {[%emt 0:00:06]} Rd8 {[%emt 0:00:40]} 20. Bg5 {[%emt 0:00:21]} Rc8 {[%emt 0:00:12]} 21. Bf6 {[%emt 0:02:42]} Bxf6 {[%emt 0:03:05]} 22. Rxf6 {[%emt 0:00:01]} Rd8 {[%emt 0:00:01]} 23. Qh6 {[%emt 0:01:08]} Ke7 {[%emt 0:02:52]} 24. Kh1 {[%emt 0:02:39]} Rdf8 {[%emt 0:02:26]} 25. Qg5 {[%emt 0:00:20]} Ke8 {[%emt 0:00:05]} 26. d4 {[%emt 0:03:49]} h6 {[%emt 0:00:17]} 27. Qe5 {[%emt 0:00:08]} Kd8 {[%emt 0:02:11]} 28. d5 {[%emt 0:00:03]} 1-0

[Event "World Prestigious University 2019"]
[Site "Tianjin"]
[Date "2019.11.29"]
[Round "10.5"]
[White "Hirao, Satoshi"]
[Black "Mihov, Filip"]
[Result "0-1"]
[WhiteElo "1958"]
[BlackElo "2191"]
[PlyCount "114"]
[EventDate "2019.11.26"]
[EventType "team-tourn"]
[EventCountry "CHN"]
[TimeControl "1500+10"]
[WhiteClock "0:01:10"]
[BlackClock "0:00:22"]

1. e4 {[%emt 0:00:00]} c5 {[%emt 0:00:00]} 2. Nf3 {[%emt 0:00:00]} e6 {[%emt 0:00:00]} 3. d4 {[%emt 0:00:00]} cxd4 {[%emt 0:00:04]} 4. Nxd4 {[%emt 0:00:00]} Nf6 {[%emt 0:00:11]} 5. Nc3 {[%emt 0:00:10]} Qb6 {[%emt 0:00:12]} 6. a3 {[%emt 0:02:44]} Nc6 {[%emt 0:03:07]} 7. Be3 {[%emt 0:00:52]} Ng4 {[%emt 0:02:18]} 8. Na4 {[%emt 0:01:59]} Qa5+ {[%emt 0:00:37]} 9. b4 {[%emt 0:01:04]} Nxe3 {[%emt 0:00:32]} 10. bxa5 {[%emt 0:00:01]} Nxd1 {[%emt 0:00:02]} 11. Nb5 {[%emt 0:00:48]} Kd8 {[%emt 0:03:57]} 12. Rxd1 {[%emt 0:00:12]} Nxa5 {[%emt 0:00:49]} 13. e5 {[%emt 0:03:28]} b6 {[%emt 0:00:47]} 14. Be2 {[%emt 0:01:35]} Bb7 {[%emt 0:03:08]} 15. O-O {[%emt 0:00:03]} Bc6 {[%emt 0:00:58]} 16. Nac3 {[%emt 0:02:44]} a6 {[%emt 0:00:57]} 17. Nd6 {[%emt 0:03:18]} Bxd6 {[%emt 0:00:10]} 18. Rxd6 {[%emt 0:00:04]} Kc7 {[%emt 0:00:24]} 19. Rfd1 {[%emt 0:00:23]} Rhd8 {[%emt 0:00:27]} 20. f4 {[%emt 0:01:19]} Nb7 {[%emt 0:00:15]} 21. R6d4 {[%emt 0:00:44]} d6 {[%emt 0:00:16]} 22. Rb4 {[%emt 0:05:40]} b5 {[%emt 0:00:30]} 23. Rdb1 {[%emt 0:00:09]} dxe5 {[%emt 0:01:21]} 24. a4 {[%emt 0:00:14]} a5 {[%emt 0:00:16]} 25. Nxb5+ {[%emt 0:00:07]} Kd7 {[%emt 0:02:21]} 26. Rc4 {[%emt 0:00:15]} Rdc8 {[%emt 0:01:25]} 27. fxe5 {[%emt 0:00:53]} Bd5 {[%emt 0:00:22]} 28. Rf4 {[%emt 0:00:01]} Ke7 {[%emt 0:00:20]} 29. c4 {[%emt 0:00:02]} Bc6 {[%emt 0:00:14]} 30. Nd4 {[%emt 0:00:09]} Ra7 {[%emt 0:02:05]} 31. Nxc6+ {[%emt 0:00:45]} Rxc6 {[%emt 0:00:01]} 32. Rbf1 {[%emt 0:00:01]} Nd8 {[%emt 0:00:04]} 33. Rb1 {[%emt 0:00:25]} Rb7 {[%emt 0:00:43]} 34. Rb5 {[%emt 0:00:07]} Rxb5 {[%emt 0:00:09]} 35. axb5 {[%emt 0:00:06]} Rc5 {[%emt 0:00:01]} 36. Re4 {[%emt 0:00:04]} Nb7 {[%emt 0:00:23]} 37. Kf2 {[%emt 0:00:26]} a4 {[%emt 0:00:35]} 38. Ke1 {[%emt 0:00:01]} Rc8 {[%emt 0:00:11]} 39. Re3 {[%emt 0:00:03]} Nc5 {[%emt 0:00:04]} 40. Kd2 {[%emt 0:00:12]} Ra8 {[%emt 0:00:30]} 41. Bf3 {[%emt 0:00:01]} Rc8 {[%emt 0:00:10]} 42. Kc3 {[%emt 0:00:03]} f6 {[%emt 0:00:15]} 43. exf6+ gxf6 {[%emt 0:00:01]} 44. Kb4 {[%emt 0:00:02]} Nd7 {[%emt 0:00:16]} 45. Rc3 {[%emt 0:00:50]} Kd6 {[%emt 0:00:04]} 46. Rd3+ {[%emt 0:00:08]} Kc7 {[%emt 0:00:05]} 47. Bd1 {[%emt 0:00:09]} Ne5 {[%emt 0:00:13]} 48. Rc3 {[%emt 0:00:01]} Kd6 {[%emt 0:00:13]} 49. Bxa4 {[%emt 0:00:04]} Nd7 {[%emt 0:00:03]} 50. Bc2 {[%emt 0:00:02]} Nc5 {[%emt 0:00:04]} 51. Ra3 {[%emt 0:00:12]} e5 {[%emt 0:00:07]} 52. Bxh7 {[%emt 0:00:09]} Rh8 {[%emt 0:00:05]} 53. Rh3 {[%emt 0:00:09]} e4 {[%emt 0:00:03]} 54. b6 {[%emt 0:00:12]} e3 {[%emt 0:00:17]} 55. Kc3 {[%emt 0:00:36]} Re8 {[%emt 0:00:30]} 56. Bd3 {[%emt 0:00:21]} Nxd3 {[%emt 0:00:06]} 57. Kxd3 {[%emt 0:00:01]} e2 {[%emt 0:00:02]} 0-1

[Event "World Prestigious University 2019"]
[Site "Tianjin"]
[Date "2019.11.29"]
[Round "10.7"]
[White "Grigory, Oparin"]
[Black "Wang, Yue"]
[Result "1/2-1/2"]
[WhiteElo "2660"]
[BlackElo "2674"]
[PlyCount "170"]
[EventDate "2019.11.26"]
[EventType "team-tourn"]
[EventCountry "CHN"]
[TimeControl "1500+10"]
[WhiteClock "0:00:56"]
[BlackClock "0:00:46"]

1. Nf3 {[%emt 0:00:00]} d5 {[%emt 0:00:00]} 2. g3 {[%emt 0:00:00]} Nf6 {[%emt 0:00:09]} 3. Bg2 {[%emt 0:00:00]} e6 {[%emt 0:00:03]} 4. O-O {[%emt 0:00:00]} c5 {[%emt 0:01:30]} 5. d4 {[%emt 0:00:04]} Nc6 {[%emt 0:00:41]} 6. c4 {[%emt 0:00:03]} dxc4 {[%emt 0:00:13]} 7. Qa4 {[%emt 0:00:02]} Bd7 {[%emt 0:00:59]} 8. Qxc4 {[%emt 0:00:02]} cxd4 {[%emt 0:00:33]} 9. Nxd4 {[%emt 0:00:03]} Rc8 {[%emt 0:00:01]} 10. Nc3 {[%emt 0:00:45]} Nxd4 {[%emt 0:00:03]} 11. Qxd4 {[%emt 0:00:02]} Bc5 {[%emt 0:00:02]} 12. Qh4 {[%emt 0:00:11]} h6 {[%emt 0:00:16]} 13. Bxb7 {[%emt 0:01:52]} Rb8 {[%emt 0:00:01]} 14. Ne4 {[%emt 0:00:02]} Be7 {[%emt 0:03:24]} 15. Ba6 {[%emt 0:00:15]} Bc6 {[%emt 0:02:28]} 16. Nxf6+ {[%emt 0:01:00]} Bxf6 {[%emt 0:00:01]} 17. Qc4 {[%emt 0:00:09]} Qd5 {[%emt 0:02:04]} 18. Qxd5 {[%emt 0:00:08]} Bxd5 {[%emt 0:00:02]} 19. a4 {[%emt 0:02:41]} Bxb2 {[%emt 0:01:17]} 20. Rb1 {[%emt 0:09:21]} Be5 {[%emt 0:00:02]} 21. Rxb8+ {[%emt 0:00:21]} Bxb8 {[%emt 0:00:02]} 22. Ba3 {[%emt 0:01:18]} f6 {[%emt 0:00:02]} 23. f3 {[%emt 0:02:24]} Kf7 {[%emt 0:01:33]} 24. Bc5 {[%emt 0:01:56]} Bc6 {[%emt 0:01:47]} 25. Rb1 {[%emt 0:00:33]} Bxa4 {[%emt 0:04:03]} 26. Rb7+ {[%emt 0:00:02]} Kg6 {[%emt 0:00:01]} 27. Bd3+ {[%emt 0:00:24]} f5 {[%emt 0:00:01]} 28. Bd4 {[%emt 0:01:03]} Rg8 {[%emt 0:03:10]} 29. Bc4 {[%emt 0:00:15]} Bc6 {[%emt 0:00:18]} 30. Re7 {[%emt 0:00:08]} Bd5 {[%emt 0:00:03]} 31. Bxd5 {[%emt 0:00:10]} exd5 {[%emt 0:00:01]} 32. Rd7 {[%emt 0:01:07]} h5 {[%emt 0:00:03]} 33. Kg2 {[%emt 0:01:08]} a5 {[%emt 0:00:33]} 34. Rxd5 {[%emt 0:00:16]} Re8 {[%emt 0:00:35]} 35. Kf1 {[%emt 0:01:21]} Bc7 {[%emt 0:00:07]} 36. Bc3 {[%emt 0:01:08]} Rd8 {[%emt 0:01:46]} 37. Rc5 {[%emt 0:00:02]} Rd1+ {[%emt 0:00:01]} 38. Kg2 {[%emt 0:00:02]} Bd8 {[%emt 0:00:01]} 39. Bxa5 {[%emt 0:00:06]} Bxa5 {[%emt 0:00:31]} 40. Rxa5 {[%emt 0:00:01]} Kf6 {[%emt 0:00:01]} 41. Ra6+ {[%emt 0:00:17]} Kf7 {[%emt 0:00:01]} 42. h4 {[%emt 0:00:09]} Rb1 {[%emt 0:00:05]} 43. Kf2 {[%emt 0:00:02]} Rb3 {[%emt 0:00:02]} 44. Rd6 {[%emt 0:00:07]} g6 {[%emt 0:00:13]} 45. Rd3 {[%emt 0:00:02]} Rb4 {[%emt 0:00:28]} 46. Ke3 {[%emt 0:00:14]} Ke6 {[%emt 0:00:18]} 47. Rd4 {[%emt 0:00:06]} Rb2 {[%emt 0:00:03]} 48. Ra4 {[%emt 0:00:03]} Kf6 {[%emt 0:00:23]} 49. Ra6+ {[%emt 0:00:12]} Kf7 {[%emt 0:00:01]} 50. Ra7+ {[%emt 0:01:02]} Kf6 {[%emt 0:00:01]} 51. Ra6+ {[%emt 0:00:01]} Kf7 {[%emt 0:00:01]} 52. Rc6 {[%emt 0:00:01]} Ra2 {[%emt 0:00:10]} 53. Kd3 {[%emt 0:00:24]} Ra4 {[%emt 0:00:22]} 54. e4 {[%emt 0:00:29]} fxe4+ {[%emt 0:00:58]} 55. fxe4 {[%emt 0:00:01]} Ra1 {[%emt 0:00:07]} 56. Ke3 {[%emt 0:00:06]} Ra3+ {[%emt 0:00:51]} 57. Kf4 {[%emt 0:00:02]} Rb3 {[%emt 0:00:01]} 58. Ra6 {[%emt 0:00:11]} Rc3 {[%emt 0:00:02]} 59. Ra2 {[%emt 0:00:05]} Rb3 {[%emt 0:00:14]} 60. Rf2 {[%emt 0:00:15]} Kf6 {[%emt 0:00:07]} 61. Rf3 {[%emt 0:00:09]} Rb1 {[%emt 0:00:45]} 62. e5+ {[%emt 0:00:35]} Kg7 {[%emt 0:00:12]} 63. Re3 {[%emt 0:00:01]} Rf1+ {[%emt 0:01:21]} 64. Ke4 {[%emt 0:00:02]} Ra1 {[%emt 0:00:02]} 65. Rd3 {[%emt 0:00:32]} Kf7 {[%emt 0:00:18]} 66. Rd7+ {[%emt 0:00:04]} Ke6 {[%emt 0:00:02]} 67. Rd6+ {[%emt 0:00:10]} Kf7 {[%emt 0:00:00]} 68. Rd7+ {[%emt 0:00:17]} Ke6 {[%emt 0:00:01]} 69. Rd6+ {[%emt 0:00:01]} Kf7 {[%emt 0:00:01]} 70. Rf6+ {[%emt 0:00:01]} Kg7 {[%emt 0:00:00]} 71. Rc6 {[%emt 0:00:00]} Kf7 {[%emt 0:00:11]} 72. Rb6 {[%emt 0:00:22]} Ra2 {[%emt 0:00:37]} 73. Kf4 {[%emt 0:00:10]} Ra4+ {[%emt 0:00:09]} 74. Kg5 {[%emt 0:00:02]} Rg4+ {[%emt 0:00:18]} 75. Kh6 {[%emt 0:00:01]} Rxg3 {[%emt 0:00:01]} 76. Rf6+ {[%emt 0:00:01]} Ke7 {[%emt 0:00:06]} 77. Rxg6 {[%emt 0:00:02]} Re3 {[%emt 0:00:25]} 78. Rg5 {[%emt 0:00:18]} Re4 {[%emt 0:00:12]} 79. Rxh5 {[%emt 0:00:40]} Rg4 {[%emt 0:00:17]} 80. Kh7 {[%emt 0:00:08]} Kf7 {[%emt 0:00:03]} 81. Rf5+ {[%emt 0:00:23]} Ke6 {[%emt 0:00:02]} 82. Rg5 {[%emt 0:00:07]} Rxh4+ {[%emt 0:00:03]} 83. Kg7 {[%emt 0:00:02]} Re4 {[%emt 0:00:01]} 84. Kg6 {[%emt 0:00:01]} Rxe5 {[%emt 0:00:01]} 85. Rxe5+ {[%emt 0:00:01]} Kxe5 {[%emt 0:00:01]} 1/2-1/2

[Event "World Prestigious University 2019"]
[Site "Tianjin"]
[Date "2019.11.29"]
[Round "10.8"]
[White "Li, Yankai"]
[Black "Dmitry, Gordievskiy"]
[Result "1-0"]
[WhiteElo "2432"]
[BlackElo "2590"]
[PlyCount "103"]
[EventDate "2019.11.26"]
[EventType "team-tourn"]
[EventCountry "CHN"]
[TimeControl "1500+10"]
[WhiteClock "0:00:25"]
[BlackClock "0:04:25"]

1. e4 {[%emt 0:00:00]} c5 {[%emt 0:00:00]} 2. Nf3 {[%emt 0:00:00]} Nc6 {[%emt 0:00:00]} 3. d4 {[%emt 0:00:00]} cxd4 {[%emt 0:00:00]} 4. Nxd4 {[%emt 0:00:00]} Nf6 {[%emt 0:00:27]} 5. Nc3 {[%emt 0:00:00]} e5 {[%emt 0:00:01]} 6. Ndb5 {[%emt 0:00:00]} d6 {[%emt 0:00:01]} 7. Bg5 {[%emt 0:00:01]} a6 {[%emt 0:00:01]} 8. Na3 {[%emt 0:00:01]} b5 {[%emt 0:00:02]} 9. Nd5 {[%emt 0:00:01]} Be7 {[%emt 0:00:00]} 10. Bxf6 {[%emt 0:00:02]} Bxf6 {[%emt 0:00:01]} 11. c3 {[%emt 0:00:01]} O-O {[%emt 0:00:53]} 12. Nc2 {[%emt 0:00:02]} Bg5 {[%emt 0:00:07]} 13. a4 {[%emt 0:00:03]} bxa4 {[%emt 0:00:34]} 14. Rxa4 {[%emt 0:00:02]} a5 {[%emt 0:00:54]} 15. Bc4 {[%emt 0:00:01]} Rb8 {[%emt 0:00:16]} 16. b3 {[%emt 0:00:02]} Kh8 {[%emt 0:00:31]} 17. O-O {[%emt 0:00:02]} f5 {[%emt 0:00:46]} 18. exf5 {[%emt 0:00:02]} Bxf5 {[%emt 0:00:01]} 19. Nce3 {[%emt 0:00:01]} Be6 {[%emt 0:00:31]} 20. Qd3 {[%emt 0:03:15]} Qd7 {[%emt 0:00:22]} 21. Ra2 {[%emt 0:07:00]} Qf7 {[%emt 0:01:15]} 22. Qe4 {[%emt 0:01:08]} g6 {[%emt 0:04:30]} 23. h4 {[%emt 0:04:32]} Bh6 {[%emt 0:03:20]} 24. g4 {[%emt 0:01:27]} Qd7 {[%emt 0:01:48]} 25. g5 {[%emt 0:04:15]} Bg7 {[%emt 0:00:02]} 26. f3 {[%emt 0:00:39]} Bh3 {[%emt 0:03:55]} 27. Rff2 {[%emt 0:00:18]} Bf5 {[%emt 0:06:37]} 28. Nxf5 {[%emt 0:00:07]} gxf5 {[%emt 0:00:01]} 29. Qe3 {[%emt 0:00:12]} Qe8 {[%emt 0:00:13]} 30. h5 {[%emt 0:01:44]} Qxh5 {[%emt 0:00:09]} 31. Rh2 {[%emt 0:00:01]} Qg6 {[%emt 0:00:04]} 32. Rxh7+ {[%emt 0:00:10]} Qxh7 {[%emt 0:00:45]} 33. Rh2 {[%emt 0:00:01]} Qxh2+ {[%emt 0:00:56]} 34. Kxh2 Kh7 35. Nc7 {[%emt 0:01:00]} Kg6 {[%emt 0:00:21]} 36. Qd3 {[%emt 0:00:15]} Rh8+ {[%emt 0:00:56]} 37. Kg2 {[%emt 0:00:05]} Rbd8 {[%emt 0:00:38]} 38. Qd5 {[%emt 0:00:01]} Kxg5 {[%emt 0:00:07]} 39. Ne6+ {[%emt 0:00:01]} Kf6 {[%emt 0:00:12]} 40. Qxc6 {[%emt 0:00:38]} Rdg8 {[%emt 0:00:01]} 41. Nc5 {[%emt 0:00:47]} Rd8 {[%emt 0:00:10]} 42. Nb7 {[%emt 0:00:00]} Rc8 {[%emt 0:00:05]} 43. Qxd6+ {[%emt 0:00:09]} Kg5 {[%emt 0:00:01]} 44. Nc5 {[%emt 0:00:21]} Bf6 {[%emt 0:00:29]} 45. Nd7 {[%emt 0:00:05]} Bg7 {[%emt 0:00:15]} 46. Qe7+ {[%emt 0:00:02]} Kh6 {[%emt 0:00:03]} 47. Qh4+ {[%emt 0:00:12]} Kg6 {[%emt 0:00:03]} 48. Qg3+ {[%emt 0:00:02]} Kh6 {[%emt 0:00:17]} 49. Nxe5 {[%emt 0:00:03]} Bxe5 {[%emt 0:00:05]} 50. Qxe5 {[%emt 0:00:01]} Kg5 {[%emt 0:00:04]} 51. f4+ {[%emt 0:00:15]} Kh4 {[%emt 0:00:15]} 52. Qf6+ {[%emt 0:00:08]} 1-0